[Event "Titled Tuesday Blitz December 27 Early 2022"]
[White "Shipov, Sergei"]
[Black "Kleiman, Jake"]
[WhiteFideId "4113624"]
[BlackFideId "2020041"]
[WhiteElo "2541"]
[BlackElo "2399"]
[Result "1-0"]
[Round "08"]
[TimeControl "180+2"]
[Date "2022.12.27"]
[WhiteClock "0:00:34"]
[BlackClock "0:00:02"]

1. d4 {[%clk 0:03:00]}  Nf6 {[%clk 0:02:59]} 2. c4 {[%clk 0:02:59]}  e6 {[%clk 0:02:58]} 3. Nc3 {[%clk 0:03:00]}  Bb4 {[%clk 0:02:59]} 4. Qc2 {[%clk 0:02:59]}  O-O {[%clk 0:02:58]} 5. a3 {[%clk 0:02:59]}  Bxc3+ {[%clk 0:02:58]} 6. Qxc3 {[%clk 0:03:00]}  d5 {[%clk 0:02:57]} 7. e3 {[%clk 0:03:00]}  b6 {[%clk 0:02:48]} 8. cxd5 {[%clk 0:03:00]}  exd5 {[%clk 0:02:49]} 9. Bd3 {[%clk 0:03:00]}  Ba6 {[%clk 0:02:45]} 10. Bxa6 {[%clk 0:02:59]}  Nxa6 {[%clk 0:02:46]} 11. Qc6 {[%clk 0:02:59]}  Qe8 {[%clk 0:02:40]} 12. Qxe8 {[%clk 0:02:57]}  Rfxe8 {[%clk 0:02:40]} 13. Ne2 {[%clk 0:02:57]}  c5 {[%clk 0:02:40]} 14. f3 {[%clk 0:02:58]}  Nc7 {[%clk 0:02:37]} 15. Bd2 {[%clk 0:02:55]}  Rac8 {[%clk 0:02:36]} 16. Kf2 {[%clk 0:02:53]}  Kf8 {[%clk 0:02:35]} 17. a4 {[%clk 0:02:51]}  Ne6 {[%clk 0:02:34]} 18. Bc3 {[%clk 0:02:52]}  Ke7 {[%clk 0:02:22]} 19. Rhd1 {[%clk 0:02:50]}  Red8 {[%clk 0:02:22]} 20. g4 {[%clk 0:02:48]}  g6 {[%clk 0:02:20]} 21. h4 {[%clk 0:02:47]}  h6 {[%clk 0:02:20]} 22. a5 {[%clk 0:02:40]}  Nc7 {[%clk 0:02:03]} 23. axb6 {[%clk 0:02:25]}  axb6 {[%clk 0:02:03]} 24. Ra7 {[%clk 0:02:25]}  Rd7 {[%clk 0:01:43]} 25. dxc5 {[%clk 0:02:25]}  bxc5 {[%clk 0:01:37]} 26. Nf4 {[%clk 0:02:25]}  Nfe8 {[%clk 0:01:02]} 27. Nxd5+ {[%clk 0:02:07]}  Nxd5 {[%clk 0:00:59]} 28. Rxd7+ {[%clk 0:02:06]}  Kxd7 {[%clk 0:01:00]} 29. Rxd5+ {[%clk 0:02:06]}  Kc6 {[%clk 0:00:59]} 30. Re5 {[%clk 0:02:03]}  Kd6 {[%clk 0:00:57]} 31. h5 {[%clk 0:01:59]}  Nc7 {[%clk 0:00:43]} 32. hxg6 {[%clk 0:01:36]}  fxg6 {[%clk 0:00:43]} 33. f4 {[%clk 0:01:32]}  Nd5 {[%clk 0:00:40]} 34. f5 {[%clk 0:01:09]}  gxf5 {[%clk 0:00:22]} 35. gxf5 {[%clk 0:01:09]}  Nxc3 {[%clk 0:00:14]} 36. Re6+ {[%clk 0:01:08]}  Kd5 {[%clk 0:00:15]} 37. bxc3 {[%clk 0:01:09]}  Kc4 {[%clk 0:00:15]} 38. Rxh6 {[%clk 0:01:04]}  Kxc3 {[%clk 0:00:15]} 39. Kf3 {[%clk 0:01:03]}  c4 {[%clk 0:00:15]} 40. e4 {[%clk 0:01:02]}  Kd4 {[%clk 0:00:11]} 41. Rd6+ {[%clk 0:01:01]}  Ke5 {[%clk 0:00:10]} 42. Rd5+ {[%clk 0:01:01]}  Kf6 {[%clk 0:00:10]} 43. Ke2 {[%clk 0:00:51]}  c3 {[%clk 0:00:10]} 44. Kd1 {[%clk 0:00:51]}  c2+ {[%clk 0:00:10]} 45. Kc1 {[%clk 0:00:51]}  Rc4 {[%clk 0:00:09]} 46. Rd6+ {[%clk 0:00:52]}  Ke7 {[%clk 0:00:07]} 47. Re6+ {[%clk 0:00:52]}  Kf7 {[%clk 0:00:08]} 48. Re5 {[%clk 0:00:52]}  Kf6 {[%clk 0:00:08]} 49. Re8 {[%clk 0:00:52]}  Kf7 {[%clk 0:00:08]} 50. Re6 {[%clk 0:00:53]}  Rc5 {[%clk 0:00:07]} 51. e5 {[%clk 0:00:42]}  Rc4 {[%clk 0:00:02]} 52. Rf6+ {[%clk 0:00:36]}  Ke7 {[%clk 0:00:02]} 53. Rh6 {[%clk 0:00:34]} 1-0


[Site "https://www.chess.com"]

[Event "Titled Tuesday Blitz December 27 Early 2022"]
[White "Slade, Theodore"]
[Black "Ayushh, Ravikumar"]
[WhiteFideId "426547"]
[BlackFideId "35039482"]
[WhiteElo "1995"]
[BlackElo "2032"]
[Result "1-0"]
[Round "08"]
[TimeControl "180+2"]
[Date "2022.12.27"]
[WhiteClock "0:01:23"]
[BlackClock "0:01:03"]

1. d4 {[%clk 0:03:00]}  Nf6 {[%clk 0:02:57]} 2. c4 {[%clk 0:03:00]}  g6 {[%clk 0:02:57]} 3. Nc3 {[%clk 0:03:00]}  Bg7 {[%clk 0:02:58]} 4. e4 {[%clk 0:03:01]}  O-O {[%clk 0:02:58]} 5. Nf3 {[%clk 0:03:01]}  d6 {[%clk 0:02:58]} 6. Be2 {[%clk 0:03:02]}  e5 {[%clk 0:02:56]} 7. Be3 {[%clk 0:03:02]}  Nc6 {[%clk 0:02:55]} 8. d5 {[%clk 0:03:02]}  Ne7 {[%clk 0:02:53]} 9. Nd2 {[%clk 0:03:02]}  Nd7 {[%clk 0:02:45]} 10. f3 {[%clk 0:03:02]}  f5 {[%clk 0:02:45]} 11. b4 {[%clk 0:03:02]}  f4 {[%clk 0:02:42]} 12. Bf2 {[%clk 0:03:02]}  a5 {[%clk 0:02:42]} 13. bxa5 {[%clk 0:03:00]}  Rxa5 {[%clk 0:02:42]} 14. Nb3 {[%clk 0:02:59]}  Ra8 {[%clk 0:02:42]} 15. c5 {[%clk 0:02:58]}  g5 {[%clk 0:02:41]} 16. cxd6 {[%clk 0:02:57]}  cxd6 {[%clk 0:02:41]} 17. Nb5 {[%clk 0:02:54]}  Rf6 {[%clk 0:02:18]} 18. Qc2 {[%clk 0:02:53]}  b6 {[%clk 0:02:16]} 19. Qc7 {[%clk 0:02:41]}  Qxc7 {[%clk 0:02:12]} 20. Nxc7 {[%clk 0:02:41]}  Ra7 {[%clk 0:02:13]} 21. Nb5 {[%clk 0:02:35]}  Ra8 {[%clk 0:02:10]} 22. Kd2 {[%clk 0:02:27]}  Nc5 {[%clk 0:02:11]} 23. Nxc5 {[%clk 0:02:19]}  bxc5 {[%clk 0:02:09]} 24. a4 {[%clk 0:02:10]}  Ra5 {[%clk 0:02:00]} 25. Kd3 {[%clk 0:02:03]}  Bd7 {[%clk 0:01:59]} 26. Rhb1 {[%clk 0:01:54]}  Nc8 {[%clk 0:01:42]} 27. Be1 {[%clk 0:01:55]}  Ra6 {[%clk 0:01:34]} 28. a5 {[%clk 0:01:54]}  Rf8 {[%clk 0:01:31]} 29. Na3 {[%clk 0:01:45]}  Bf6 {[%clk 0:01:24]} 30. Kc2 {[%clk 0:01:45]}  Ra7 {[%clk 0:01:22]} 31. Bb5 {[%clk 0:01:40]}  Ne7 {[%clk 0:01:21]} 32. Bxd7 {[%clk 0:01:39]}  Rxd7 {[%clk 0:01:22]} 33. Nc4 {[%clk 0:01:35]}  Ra7 {[%clk 0:01:19]} 34. Nxd6 {[%clk 0:01:34]}  Rfa8 {[%clk 0:01:17]} 35. Nb5 {[%clk 0:01:33]}  Rd7 {[%clk 0:01:17]} 36. Bf2 {[%clk 0:01:30]}  c4 {[%clk 0:01:10]} 37. Kc3 {[%clk 0:01:29]}  Nc8 {[%clk 0:01:09]} 38. Kxc4 {[%clk 0:01:27]}  Nd6+ {[%clk 0:01:10]} 39. Nxd6 {[%clk 0:01:28]}  Rxd6 {[%clk 0:01:11]} 40. Rb6 {[%clk 0:01:24]}  Rxb6 {[%clk 0:01:02]} 41. Bxb6 {[%clk 0:01:23]}  Bd8 {[%clk 0:01:03]} 42. Bxd8 {[%clk 0:01:22]}  Rxd8 {[%clk 0:01:03]} 43. a6 {[%clk 0:01:22]}  Rc8+ {[%clk 0:01:03]} 44. Kb5 {[%clk 0:01:22]}  Rc2 {[%clk 0:01:03]} 45. a7 {[%clk 0:01:23]} 1-0


[Site "https://www.chess.com"]

[Event "Titled Tuesday Blitz December 27 Early 2022"]
[White "Sovetbekova, Nurai"]
[Black "Sailer, Mike"]
[WhiteFideId "13801910"]
[BlackFideId "2012901"]
[WhiteElo "1764"]
[BlackElo "2109"]
[Result "0-1"]
[Round "08"]
[TimeControl "180+2"]
[Date "2022.12.27"]
[WhiteClock "0:00:11"]
[BlackClock "0:00:03"]

1. d4 {[%clk 0:03:00]}  d5 {[%clk 0:02:59]} 2. c4 {[%clk 0:03:00]}  Bf5 {[%clk 0:02:58]} 3. Nf3 {[%clk 0:02:57]}  e6 {[%clk 0:02:58]} 4. Nc3 {[%clk 0:02:53]}  Nc6 {[%clk 0:02:58]} 5. cxd5 {[%clk 0:02:50]}  exd5 {[%clk 0:02:56]} 6. Bf4 {[%clk 0:02:50]}  Nf6 {[%clk 0:02:53]} 7. e3 {[%clk 0:02:48]}  Bb4 {[%clk 0:02:53]} 8. a3 {[%clk 0:02:40]}  Bxc3+ {[%clk 0:02:43]} 9. bxc3 {[%clk 0:02:41]}  Ne4 {[%clk 0:02:43]} 10. Rc1 {[%clk 0:02:33]}  O-O {[%clk 0:02:41]} 11. Bd3 {[%clk 0:02:32]}  Re8 {[%clk 0:02:39]} 12. O-O {[%clk 0:02:31]}  Na5 {[%clk 0:02:38]} 13. Ne5 {[%clk 0:02:03]}  c6 {[%clk 0:02:28]} 14. c4 {[%clk 0:01:53]}  dxc4 {[%clk 0:02:23]} 15. Nxc4 {[%clk 0:01:53]}  Nxc4 {[%clk 0:02:22]} 16. Bxc4 {[%clk 0:01:51]}  Qa5 {[%clk 0:02:07]} 17. Qb3 {[%clk 0:01:21]}  Nd2 {[%clk 0:01:44]} 18. Bxf7+ {[%clk 0:01:21]}  Kh8 {[%clk 0:01:43]} 19. Qa2 {[%clk 0:01:17]}  Nxf1 {[%clk 0:01:40]} 20. Bxe8 {[%clk 0:01:15]}  Nxe3 {[%clk 0:01:37]} 21. Qf7 {[%clk 0:00:57]}  Qd5 {[%clk 0:00:27]} 22. Bxe3 {[%clk 0:00:47]}  Qxf7 {[%clk 0:00:27]} 23. Bxf7 {[%clk 0:00:47]}  g6 {[%clk 0:00:22]} 24. d5 {[%clk 0:00:45]}  Kg7 {[%clk 0:00:22]} 25. Be6 {[%clk 0:00:43]}  Bxe6 {[%clk 0:00:22]} 26. dxe6 {[%clk 0:00:44]}  Kf6 {[%clk 0:00:23]} 27. Rb1 {[%clk 0:00:43]}  b6 {[%clk 0:00:22]} 28. Rc1 {[%clk 0:00:40]}  c5 {[%clk 0:00:22]} 29. Kf1 {[%clk 0:00:40]}  Kxe6 {[%clk 0:00:23]} 30. Ke2 {[%clk 0:00:40]}  Kd5 {[%clk 0:00:18]} 31. Kd3 {[%clk 0:00:37]}  Rc8 {[%clk 0:00:19]} 32. Kc3 {[%clk 0:00:37]}  b5 {[%clk 0:00:18]} 33. Rd1+ {[%clk 0:00:37]}  Kc6 {[%clk 0:00:18]} 34. Bf4 {[%clk 0:00:37]}  a5 {[%clk 0:00:12]} 35. Rd6+ {[%clk 0:00:36]}  Kb7 {[%clk 0:00:13]} 36. Rd7+ {[%clk 0:00:36]}  Kc6 {[%clk 0:00:14]} 37. Rxh7 {[%clk 0:00:35]}  b4+ {[%clk 0:00:14]} 38. axb4 {[%clk 0:00:35]}  cxb4+ {[%clk 0:00:13]} 39. Kb3 {[%clk 0:00:34]}  Kb5 {[%clk 0:00:12]} 40. Rb7+ {[%clk 0:00:32]}  Ka6 {[%clk 0:00:12]} 41. Rc7 {[%clk 0:00:28]}  Rd8 {[%clk 0:00:13]} 42. Rc6+ {[%clk 0:00:28]}  Kb5 {[%clk 0:00:13]} 43. Rxg6 {[%clk 0:00:24]}  Rd3+ {[%clk 0:00:13]} 44. Kc2 {[%clk 0:00:24]}  Rc3+ {[%clk 0:00:13]} 45. Kb2 {[%clk 0:00:25]}  a4 {[%clk 0:00:12]} 46. Rg5+ {[%clk 0:00:23]}  Kc4 {[%clk 0:00:11]} 47. Bd2 {[%clk 0:00:14]}  a3+ {[%clk 0:00:11]} 48. Kb1 {[%clk 0:00:14]}  Rd3 {[%clk 0:00:10]} 49. Rg4+ {[%clk 0:00:12]}  Kd5 {[%clk 0:00:03]} 50. Bxb4 {[%clk 0:00:11]}  Rb3+ {[%clk 0:00:03]} 0-1


[Site "https://www.chess.com"]

[Event "Titled Tuesday Blitz December 27 Early 2022"]
[White "Tarnowska, Aleksandra"]
[Black "Gatterer, Florian"]
[WhiteFideId "1180967"]
[BlackFideId "811688"]
[WhiteElo "1835"]
[BlackElo "2170"]
[Result "1-0"]
[Round "08"]
[TimeControl "180+2"]
[Date "2022.12.27"]
[WhiteClock "0:00:07"]
[BlackClock "0:00:10"]

1. e4 {[%clk 0:03:00]}  c5 {[%clk 0:02:59]} 2. Nf3 {[%clk 0:03:00]}  e6 {[%clk 0:02:59]} 3. Nc3 {[%clk 0:02:55]}  Nc6 {[%clk 0:02:58]} 4. Bb5 {[%clk 0:02:54]}  Nd4 {[%clk 0:02:58]} 5. Nxd4 {[%clk 0:02:43]}  cxd4 {[%clk 0:02:58]} 6. Ne2 {[%clk 0:02:42]}  Nf6 {[%clk 0:02:48]} 7. e5 {[%clk 0:02:21]}  Ng4 {[%clk 0:02:47]} 8. O-O {[%clk 0:02:08]}  Nxe5 {[%clk 0:02:39]} 9. Nxd4 {[%clk 0:02:08]}  Qb6 {[%clk 0:02:31]} 10. c3 {[%clk 0:01:35]}  Bc5 {[%clk 0:02:29]} 11. Qh5 {[%clk 0:01:29]}  Bxd4 {[%clk 0:02:05]} 12. cxd4 {[%clk 0:01:27]}  Qxd4 {[%clk 0:02:05]} 13. Re1 {[%clk 0:01:23]}  Ng6 {[%clk 0:01:55]} 14. Qf3 {[%clk 0:00:30]}  O-O {[%clk 0:01:47]} 15. d3 {[%clk 0:00:30]}  a6 {[%clk 0:01:46]} 16. Ba4 {[%clk 0:00:26]}  Qxa4 {[%clk 0:01:24]} 17. b3 {[%clk 0:00:23]}  Qc6 {[%clk 0:01:18]} 18. Qg4 {[%clk 0:00:17]}  f5 {[%clk 0:01:08]} 19. Qg5 {[%clk 0:00:16]}  Qc3 {[%clk 0:01:04]} 20. Ba3 {[%clk 0:00:14]}  Re8 {[%clk 0:00:52]} 21. Rac1 {[%clk 0:00:11]}  Qf6 {[%clk 0:00:51]} 22. Qe3 {[%clk 0:00:08]}  b5 {[%clk 0:00:48]} 23. Rc7 {[%clk 0:00:08]}  a5 {[%clk 0:00:44]} 24. b4 {[%clk 0:00:03]}  f4 {[%clk 0:00:35]} 25. Qe4 {[%clk 0:00:03]}  Ra6 {[%clk 0:00:27]} 26. Rec1 {[%clk 0:00:03]}  axb4 {[%clk 0:00:26]} 27. Bxb4 {[%clk 0:00:03]}  f3 {[%clk 0:00:26]} 28. Rxc8 {[%clk 0:00:03]}  Ra8 {[%clk 0:00:21]} 29. Rxa8 {[%clk 0:00:02]}  Rxa8 {[%clk 0:00:20]} 30. Qxa8+ {[%clk 0:00:03]}  Kf7 {[%clk 0:00:20]} 31. Qxf3 {[%clk 0:00:04]}  d5 {[%clk 0:00:18]} 32. Rc7+ {[%clk 0:00:03]}  Kg8 {[%clk 0:00:18]} 33. Qxf6 {[%clk 0:00:03]}  gxf6 {[%clk 0:00:19]} 34. Be7 {[%clk 0:00:03]}  Kf7 {[%clk 0:00:18]} 35. Bd8+ {[%clk 0:00:03]}  Ke8 {[%clk 0:00:18]} 36. Bxf6 {[%clk 0:00:03]}  e5 {[%clk 0:00:17]} 37. h4 {[%clk 0:00:04]}  Nf4 {[%clk 0:00:15]} 38. h5 {[%clk 0:00:04]}  Nxd3 {[%clk 0:00:14]} 39. Re7+ {[%clk 0:00:04]}  Kd8 {[%clk 0:00:14]} 40. Rxh7+ {[%clk 0:00:05]}  Kc8 {[%clk 0:00:11]} 41. h6 {[%clk 0:00:05]}  e4 {[%clk 0:00:11]} 42. Re7 {[%clk 0:00:06]}  Nc5 {[%clk 0:00:10]} 43. h7 {[%clk 0:00:06]}  Nd7 {[%clk 0:00:10]} 44. h8=Q+ {[%clk 0:00:07]} 1-0


[Site "https://www.chess.com"]

[Event "Titled Tuesday Blitz December 27 Early 2022"]
[White "Tharushi, T H D Niklesha"]
[Black "Kovacevic, Radmila"]
[WhiteFideId "9918264"]
[BlackFideId "933171"]
[WhiteElo "1570"]
[BlackElo "2106"]
[Result "0-1"]
[Round "08"]
[TimeControl "180+2"]
[Date "2022.12.27"]
[WhiteClock "0:00:40"]
[BlackClock "0:01:45"]

1. e4 {[%clk 0:03:00]}  e5 {[%clk 0:02:58]} 2. Nf3 {[%clk 0:03:00]}  f5 {[%clk 0:02:58]} 3. Nxe5 {[%clk 0:02:50]}  Qf6 {[%clk 0:02:57]} 4. d4 {[%clk 0:02:47]}  d6 {[%clk 0:02:57]} 5. Nc4 {[%clk 0:02:27]}  fxe4 {[%clk 0:02:58]} 6. Nc3 {[%clk 0:02:27]}  Qg6 {[%clk 0:02:56]} 7. g3 {[%clk 0:02:01]}  Nf6 {[%clk 0:02:53]} 8. Bg2 {[%clk 0:02:00]}  Nc6 {[%clk 0:02:50]} 9. O-O {[%clk 0:02:00]}  Bg4 {[%clk 0:02:45]} 10. Qd2 {[%clk 0:01:55]}  O-O-O {[%clk 0:02:44]} 11. Qg5 {[%clk 0:01:52]}  Nxd4 {[%clk 0:02:38]} 12. Qxg6 {[%clk 0:01:52]}  hxg6 {[%clk 0:02:37]} 13. Ne3 {[%clk 0:01:43]}  Bf3 {[%clk 0:02:32]} 14. Bd2 {[%clk 0:01:30]}  c6 {[%clk 0:02:25]} 15. a4 {[%clk 0:01:20]}  d5 {[%clk 0:02:16]} 16. a5 {[%clk 0:01:20]}  Bb4 {[%clk 0:02:12]} 17. Ra4 {[%clk 0:01:19]}  Bxc3 {[%clk 0:02:11]} 18. Bxc3 {[%clk 0:01:18]}  Ne2+ {[%clk 0:02:10]} 19. Kh1 {[%clk 0:01:16]}  d4 {[%clk 0:01:51]} 20. Bxf3 {[%clk 0:01:04]}  exf3 {[%clk 0:01:49]} 21. Bxd4 {[%clk 0:00:43]}  Rxh2+ {[%clk 0:01:45]} 22. Kxh2 {[%clk 0:00:40]}  Rh8# {[%clk 0:01:45]} 0-1


[Site "https://www.chess.com"]

[Event "Titled Tuesday Blitz December 27 Early 2022"]
[White "Tworuszka, Michal"]
[Black "Rangel, Daniel"]
[WhiteFideId "1117858"]
[BlackFideId "2124475"]
[WhiteElo "2260"]
[BlackElo "2207"]
[Result "0-1"]
[Round "08"]
[TimeControl "180+2"]
[Date "2022.12.27"]
[WhiteClock "0:00:08"]
[BlackClock "0:00:29"]

1. d4 {[%clk 0:03:00]}  Nf6 {[%clk 0:02:57]} 2. c4 {[%clk 0:03:00]}  g6 {[%clk 0:02:58]} 3. Nc3 {[%clk 0:02:55]}  Bg7 {[%clk 0:02:59]} 4. e4 {[%clk 0:02:54]}  O-O {[%clk 0:02:57]} 5. h3 {[%clk 0:02:53]}  c6 {[%clk 0:02:57]} 6. Bg5 {[%clk 0:02:51]}  d5 {[%clk 0:02:56]} 7. e5 {[%clk 0:02:50]}  Ne4 {[%clk 0:02:56]} 8. Nxe4 {[%clk 0:02:47]}  dxe4 {[%clk 0:02:57]} 9. Qd2 {[%clk 0:02:34]}  f6 {[%clk 0:02:52]} 10. exf6 {[%clk 0:02:34]}  exf6 {[%clk 0:02:53]} 11. Be3 {[%clk 0:02:33]}  f5 {[%clk 0:02:46]} 12. Ne2 {[%clk 0:02:33]}  Be6 {[%clk 0:02:43]} 13. Nf4 {[%clk 0:02:31]}  Bf7 {[%clk 0:02:43]} 14. Be2 {[%clk 0:02:31]}  g5 {[%clk 0:02:41]} 15. Nh5 {[%clk 0:02:24]}  f4 {[%clk 0:02:34]} 16. Nxg7 {[%clk 0:02:05]}  fxe3 {[%clk 0:02:31]} 17. Qxe3 {[%clk 0:02:05]}  Kxg7 {[%clk 0:02:31]} 18. h4 {[%clk 0:02:05]}  h6 {[%clk 0:02:24]} 19. hxg5 {[%clk 0:02:04]}  Qxg5 {[%clk 0:02:25]} 20. Qb3 {[%clk 0:01:50]}  Nd7 {[%clk 0:02:13]} 21. Rh3 {[%clk 0:01:49]}  Bg6 {[%clk 0:02:00]} 22. Qxb7 {[%clk 0:01:45]}  Rf7 {[%clk 0:01:53]} 23. Rg3 {[%clk 0:01:44]}  Qa5+ {[%clk 0:01:52]} 24. Kf1 {[%clk 0:01:42]}  Raf8 {[%clk 0:01:48]} 25. Qxc6 {[%clk 0:01:31]}  Nf6 {[%clk 0:01:15]} 26. Kg1 {[%clk 0:01:18]}  Qf5 {[%clk 0:01:05]} 27. Rf1 {[%clk 0:01:08]}  h5 {[%clk 0:01:05]} 28. f4 {[%clk 0:00:48]}  Ng4 {[%clk 0:00:57]} 29. Bxg4 {[%clk 0:00:34]}  hxg4 {[%clk 0:00:58]} 30. Rb3 {[%clk 0:00:33]}  Qf6 {[%clk 0:00:50]} 31. Qxf6+ {[%clk 0:00:25]}  Rxf6 {[%clk 0:00:51]} 32. d5 {[%clk 0:00:25]}  Rxf4 {[%clk 0:00:45]} 33. Rxf4 {[%clk 0:00:24]}  Rxf4 {[%clk 0:00:45]} 34. c5 {[%clk 0:00:23]}  Bf7 {[%clk 0:00:45]} 35. Rb7 {[%clk 0:00:21]}  Kf6 {[%clk 0:00:36]} 36. d6 {[%clk 0:00:15]}  e3 {[%clk 0:00:31]} 37. Rb3 {[%clk 0:00:07]}  e2 {[%clk 0:00:27]} 38. Re3 {[%clk 0:00:08]}  Rf1+ {[%clk 0:00:28]} 39. Kh2 {[%clk 0:00:08]}  e1=Q {[%clk 0:00:28]} 40. Rxe1 {[%clk 0:00:08]}  Rxe1 {[%clk 0:00:29]} 0-1


[Site "https://www.chess.com"]

[Event "Titled Tuesday Blitz December 27 Early 2022"]
[White "Tymrakiewicz, Rafal"]
[Black "Vasques, Antonio Pedro Freixial"]
[WhiteFideId "1108832"]
[BlackFideId "1908332"]
[WhiteElo "2144"]
[BlackElo "2214"]
[Result "1/2-1/2"]
[Round "08"]
[TimeControl "180+2"]
[Date "2022.12.27"]
[WhiteClock "0:00:03"]
[BlackClock "0:00:13"]

1. e4 {[%clk 0:03:00]}  c5 {[%clk 0:02:59]} 2. d4 {[%clk 0:02:58]}  cxd4 {[%clk 0:02:59]} 3. c3 {[%clk 0:02:58]}  d3 {[%clk 0:03:00]} 4. Bxd3 {[%clk 0:02:58]}  Nc6 {[%clk 0:03:00]} 5. Be3 {[%clk 0:02:58]}  Nf6 {[%clk 0:02:59]} 6. f4 {[%clk 0:02:58]}  d6 {[%clk 0:02:59]} 7. h3 {[%clk 0:02:58]}  e5 {[%clk 0:02:41]} 8. Nf3 {[%clk 0:02:54]}  Be7 {[%clk 0:02:40]} 9. Nbd2 {[%clk 0:02:48]}  O-O {[%clk 0:02:40]} 10. f5 {[%clk 0:02:27]}  d5 {[%clk 0:02:38]} 11. g4 {[%clk 0:02:27]}  dxe4 {[%clk 0:02:19]} 12. Bxe4 {[%clk 0:02:17]}  Nd5 {[%clk 0:02:10]} 13. Qe2 {[%clk 0:02:01]}  Nf4 {[%clk 0:01:38]} 14. Bxf4 {[%clk 0:01:54]}  exf4 {[%clk 0:01:39]} 15. Nb3 {[%clk 0:01:54]}  Re8 {[%clk 0:01:32]} 16. Rd1 {[%clk 0:01:52]}  Qb6 {[%clk 0:01:26]} 17. Kf1 {[%clk 0:01:44]}  a5 {[%clk 0:01:21]} 18. Qf2 {[%clk 0:01:14]}  Qxf2+ {[%clk 0:01:09]} 19. Kxf2 {[%clk 0:01:14]}  a4 {[%clk 0:01:10]} 20. Bxc6 {[%clk 0:01:06]}  bxc6 {[%clk 0:01:09]} 21. Nbd4 {[%clk 0:01:03]}  c5 {[%clk 0:00:56]} 22. Nb5 {[%clk 0:01:00]}  Bd8 {[%clk 0:00:55]} 23. Nd6 {[%clk 0:00:40]}  Rf8 {[%clk 0:00:32]} 24. Nxc8 {[%clk 0:00:40]}  Rxc8 {[%clk 0:00:32]} 25. Ne5 {[%clk 0:00:36]}  Bc7 {[%clk 0:00:22]} 26. Nc4 {[%clk 0:00:36]}  Rfd8 {[%clk 0:00:19]} 27. Kf3 {[%clk 0:00:34]}  Kf8 {[%clk 0:00:20]} 28. Rhe1 {[%clk 0:00:29]}  g5 {[%clk 0:00:20]} 29. Rf1 {[%clk 0:00:14]}  Kg7 {[%clk 0:00:12]} 30. Rfe1 {[%clk 0:00:14]}  Kf6 {[%clk 0:00:13]} 31. Rf1 {[%clk 0:00:15]}  Rxd1 {[%clk 0:00:11]} 32. Rxd1 {[%clk 0:00:15]}  Rb8 {[%clk 0:00:11]} 33. Rd7 {[%clk 0:00:14]}  Bd8 {[%clk 0:00:11]} 34. Rd6+ {[%clk 0:00:13]}  Ke7 {[%clk 0:00:11]} 35. Rc6 {[%clk 0:00:12]}  Rb7 {[%clk 0:00:09]} 36. f6+ {[%clk 0:00:13]}  Ke8 {[%clk 0:00:09]} 37. Ne5 {[%clk 0:00:13]}  Rb6 {[%clk 0:00:08]} 38. Rxb6 {[%clk 0:00:11]}  Bxb6 {[%clk 0:00:09]} 39. Nd3 {[%clk 0:00:08]}  c4 {[%clk 0:00:09]} 40. Ne5 {[%clk 0:00:08]}  Bd8 {[%clk 0:00:09]} 41. Nxc4 {[%clk 0:00:08]}  Bxf6 {[%clk 0:00:10]} 42. a3 {[%clk 0:00:08]}  Kd7 {[%clk 0:00:10]} 43. Nb6+ {[%clk 0:00:08]}  Kc6 {[%clk 0:00:10]} 44. Nxa4 {[%clk 0:00:09]}  Kb5 {[%clk 0:00:10]} 45. b3 {[%clk 0:00:10]}  Be7 {[%clk 0:00:10]} 46. c4+ {[%clk 0:00:10]}  Ka5 {[%clk 0:00:10]} 47. Nc3 {[%clk 0:00:08]}  Bxa3 {[%clk 0:00:10]} 48. Nd5 {[%clk 0:00:09]}  Bb2 {[%clk 0:00:10]} 49. Ke4 {[%clk 0:00:09]}  Ka6 {[%clk 0:00:10]} 50. Kd3 {[%clk 0:00:08]}  Kb7 {[%clk 0:00:10]} 51. b4 {[%clk 0:00:09]}  Kc6 {[%clk 0:00:10]} 52. Ne7+ {[%clk 0:00:07]}  Kd7 {[%clk 0:00:10]} 53. Nf5 {[%clk 0:00:08]}  Ke6 {[%clk 0:00:10]} 54. Nd4+ {[%clk 0:00:08]}  Bxd4 {[%clk 0:00:10]} 55. Kxd4 {[%clk 0:00:08]}  f5 {[%clk 0:00:10]} 56. b5 {[%clk 0:00:07]}  fxg4 {[%clk 0:00:08]} 57. hxg4 {[%clk 0:00:08]}  Kd6 {[%clk 0:00:08]} 58. c5+ {[%clk 0:00:08]}  Kc7 {[%clk 0:00:09]} 59. Ke4 {[%clk 0:00:08]}  Kb7 {[%clk 0:00:09]} 60. Kd3 {[%clk 0:00:06]}  Kc7 {[%clk 0:00:09]} 61. Kd4 {[%clk 0:00:06]}  Kb7 {[%clk 0:00:10]} 62. Ke4 {[%clk 0:00:06]}  Kc7 {[%clk 0:00:10]} 63. Kf3 {[%clk 0:00:05]}  h6 {[%clk 0:00:11]} 64. Ke4 {[%clk 0:00:05]}  Kb7 {[%clk 0:00:11]} 65. Kd3 {[%clk 0:00:03]}  Kc7 {[%clk 0:00:12]} 66. Kd4 {[%clk 0:00:04]}  Kb8 {[%clk 0:00:12]} 67. Ke4 {[%clk 0:00:04]}  Kc7 {[%clk 0:00:13]} 68. Kf3 {[%clk 0:00:03]}  Kb7 {[%clk 0:00:13]} 69. Ke4 {[%clk 0:00:04]}  Kc7 {[%clk 0:00:13]} 70. Kf3 {[%clk 0:00:03]}  Kd7 {[%clk 0:00:13]} 71. Kf2 {[%clk 0:00:02]}  Kc7 {[%clk 0:00:13]} 72. Kf3 {[%clk 0:00:03]} 1/2-1/2


[Site "https://www.chess.com"]

[Event "Titled Tuesday Blitz December 27 Early 2022"]
[White "Yaran, Siar"]
[Black "Lorenzo De La Riva, Lazaro"]
[WhiteFideId "6323006"]
[BlackFideId "2268809"]
[WhiteElo "2288"]
[BlackElo "2404"]
[Result "1-0"]
[Round "08"]
[TimeControl "180+2"]
[Date "2022.12.27"]
[WhiteClock "0:00:30"]
[BlackClock "0:00:15"]

1. d4 {[%clk 0:03:00]}  Nf6 {[%clk 0:03:00]} 2. c4 {[%clk 0:03:00]}  e6 {[%clk 0:03:00]} 3. Nc3 {[%clk 0:03:01]}  Bb4 {[%clk 0:03:00]} 4. e3 {[%clk 0:03:02]}  O-O {[%clk 0:02:59]} 5. Bd3 {[%clk 0:03:02]}  d5 {[%clk 0:02:57]} 6. a3 {[%clk 0:03:01]}  Bd6 {[%clk 0:02:55]} 7. Nf3 {[%clk 0:03:01]}  b6 {[%clk 0:02:55]} 8. e4 {[%clk 0:02:56]}  dxc4 {[%clk 0:02:30]} 9. Bxc4 {[%clk 0:02:51]}  Be7 {[%clk 0:02:30]} 10. h4 {[%clk 0:02:41]}  Bb7 {[%clk 0:02:25]} 11. Bd3 {[%clk 0:02:41]}  h6 {[%clk 0:02:24]} 12. Rh3 {[%clk 0:02:39]}  c5 {[%clk 0:02:22]} 13. e5 {[%clk 0:02:37]}  Ne8 {[%clk 0:02:13]} 14. Rg3 {[%clk 0:02:24]}  Kh8 {[%clk 0:02:13]} 15. Bxh6 {[%clk 0:02:14]}  cxd4 {[%clk 0:02:12]} 16. Qc1 {[%clk 0:01:26]}  g6 {[%clk 0:01:53]} 17. Ne4 {[%clk 0:01:25]}  Nd7 {[%clk 0:01:48]} 18. Qf4 {[%clk 0:01:10]}  Ng7 {[%clk 0:01:38]} 19. Nfg5 {[%clk 0:00:44]}  Nh5 {[%clk 0:00:34]} 20. Nxf7+ {[%clk 0:00:35]}  Kh7 {[%clk 0:00:27]} 21. Rxg6 {[%clk 0:00:31]}  Nxf4 {[%clk 0:00:15]} 22. Rg7# {[%clk 0:00:30]} 1-0


[Site "https://www.chess.com"]